[Event "French-ch Youth U18 2022"]
[Site "Agen"]
[Date "2022.04.18"]
[Round "3.2"]
[White "Decker, Thomas"]
[Black "Decuigniere, Tom"]
[Result "1/2-1/2"]
[ECO "A20"]
[WhiteElo "2043"]
[BlackElo "2292"]
[Annotator "TA"]
[PlyCount "82"]
[EventDate "2022.04.17"]
[EventType "swiss"]
[EventCountry "FRA"]
[SourceTitle "playchess.com"]
[Source "ChessBase"]
[SourceQuality "1"]
[TimeControl "5400+30"]

{[%evp 12,82,29,-2,-6,-14,-12,-1,25,0,0,0,10,12,14,-47,-39,-48,-19,-31,-36,-47,-29,-43,-21,-12,-27,-16,-9,-36,-10,-18,-6,-34,0,-22,0,0,0,0,0,0,0,0,21,35,73,70,70,57,64,44,50,45,53,45,97,90,108,84,76,71,78,84,89,36,33,38,39,51,50,58,49]} 1. c4 {[%emt 0:00:22]} e5 {[%emt 0:00:34]} 2. g3 {[%emt 0:00:23]} Nf6 {[%emt 0:00:29]} 3. Bg2 {[%emt 0:00:42]} c6 {[%emt 0:00:12]} 4. Nf3 {[%emt 0:01:28]} e4 {[%emt 0:00:21]} 5. Nd4 {[%emt 0:00:37]} d5 {[%emt 0:00:10]} 6. cxd5 {[%emt 0:01:28]} Qxd5 {[%emt 0:00:07]} 7. Nb3 {[%emt 0:02:39]} Qh5 {[%emt 0:02:18] A20: English Opening: 1...e5.} 8. h3 {[%emt 0:05:01]} Qg6 {[%emt 0:03:55]} 9. Nc3 {[%emt 0:01:07]} Bd6 {[%emt 0:00:59] The position is equal.} 10. Qc2 {[%emt 0:03:36][%cal Rc3e4]} e3 {[%emt 0:00:56]} 11. Qxg6 {[%emt 0:00:41]} exf2+ {[%emt 0:00:06]} 12. Kxf2 {[%emt 0:00:02] [#]} fxg6 $146 {[%emt 0:06:42]} ({Predecessor:} 12... hxg6 13. d4 Nh5 14. g4 Ng3 15. Rd1 f5 16. d5 Be5 17. Rd3 fxg4 18. Re3 O-O+ {0-1 (43) Khachykian,S (2076)-Prohaszka,P (2404) Herceg Novi 2006}) 13. Ne4 {[%emt 0:14:17]} (13. d4 $11) 13... Nxe4+ {[%emt 0:02:01]} 14. Bxe4 {[%emt 0:00:03]} Nd7 {[%emt 0:02:22]} 15. d3 {[%emt 0:02:57]} a5 {[%emt 0:07:18]} 16. Be3 {[%emt 0:09:33]} O-O+ {[%emt 0:03:09]} 17. Kg2 {[%emt 0:00:43]} Nf6 {[%emt 0:09:16]} 18. Bf3 {[%emt 0:02:36]} Re8 {[%emt 0:05:57]} 19. Bf2 {[%emt 0:02:58]} g5 {[%emt 0:04:18]} 20. Nd2 {[%emt 0:05:42][%cal Bb3d2,Bd2c4,Bc4e3][%mdl 32]} g4 {[%emt 0:03:43]} 21. hxg4 {[%emt 0:00:26]} Bxg4 {[%emt 0:00:27]} 22. e4 {[%emt 0:13:29]} Bb4 {[%emt 0:06:58]} 23. Nc4 {[%emt 0:06:54]} b5 {[%emt 0:03:16]} 24. Ne3 {[%emt 0:01:04]} Bxf3+ {[%emt 0:00:22]} 25. Kxf3 {[%emt 0:00:06]} Nd7 {[%emt 0:01:19]} 26. Ke2 {[%emt 0:01:35]} Rad8 {[%emt 0:02:22]} 27. Rac1 {[%emt 0:01:46]} Nc5 {[%emt 0:02:22]} 28. Rhd1 {[%emt 0:07:21]} Na4 {[%emt 0:02:38]} 29. Rc2 {[%emt 0:01:34]} Bf8 $1 {[%emt 0:01:13]} 30. Ng4 {[%emt 0:01:13] [#] b3 is the strong threat.} b4 {[%emt 0:00:25]} 31. Ne3 {[%emt 0:02:46]} ({Don't play} 31. Rxc6 Nxb2 32. Rd2 Na4 $11) 31... Bc5 {[%emt 0:04:02]} 32. Rdc1 {[%emt 0:03:02]} Bd4 {[%emt 0:00:20]} 33. Nd1 {[%emt 0:00:02] Strongly threatening Bxd4.} Bxf2 {[%emt 0:01:17]} ({Black should play} 33... c5 $14) 34. Nxf2 $16 {[%emt 0:00:04]} Re5 {[%emt 0:03:41]} 35. Rxc6 {[%emt 0:04:50] Black must now prevent Rc8.} Nxb2 {[%emt 0:00:43]} 36. R1c5 {[%emt 0:01:39]} (36. R6c5 {is more complex.} Re7 37. R1c2 Na4 38. Rxa5 Nc3+ 39. Kf3) 36... Rxc5 {[%emt 0:00:18]} 37. Rxc5 {[%emt 0:00:01]} Ra8 {[%emt 0:00:10]} 38. Rb5 {[%emt 0:01:22]} (38. Rc7 $16) 38... Na4 $1 $14 {[%emt 0:03:41] [#] aiming for ...Nc3+. White is slightly better.} 39. Nd1 {[%emt 0:00:01]} Rc8 $1 {[%emt 0:00:14]} 40. Rxa5 {[%emt 0:00:40]} Rc2+ {[%emt 0:00:30]} 41. Ke3 {[%emt 0:00:11]} Rxa2 {Weighted Error Value: White=0.11 (very precise) /Black=0.08 (flawless)} 1/2-1/2

[Event "French-ch Youth U18 2022"]
[Site "Agen"]
[Date "2022.04.18"]
[Round "3.3"]
[White "Commin-Humeau, Augustin"]
[Black "Bassini, Emile"]
[Result "0-1"]
[ECO "B51"]
[WhiteElo "2029"]
[BlackElo "2287"]
[Annotator "TA"]
[PlyCount "74"]
[EventDate "2022.04.17"]
[EventType "swiss"]
[EventCountry "FRA"]
[SourceTitle "playchess.com"]
[Source "ChessBase"]
[SourceQuality "1"]
[TimeControl "5400+30"]

{[%evp 10,74,26,42,48,0,24,30,27,23,35,0,0,-37,-47,-46,-31,-53,-52,-105,-105,-106,-85,-101,-71,-77,-62,-135,-115,-114,-83,-137,-84,-167,-113,-108,-108,-117,-123,-450,-458,-643,-649,-1356,-1394,-1289,-1256,-1427,-1421,-1360,-1339,-1319,-1248,-1233,-1213,-1435,-1439,-1977,-1749,-29969,-29968,-29955,-5720,-29991,-29992,-29994,-29994]} 1. e4 {[%emt 0:00:05]} c5 {[%emt 0:00:04]} 2. Nf3 {[%emt 0:00:09]} d6 {[%emt 0:00:04]} 3. Bb5+ {[%emt 0:00:15]} Nd7 {[%emt 0:00:07]} 4. d4 {[%emt 0:00:39]} cxd4 {[%emt 0:00:38]} 5. Qxd4 {[%emt 0:00:33]} Ngf6 {[%emt 0:01:24]} 6. Bg5 {[%emt 0:03:40]} e6 {[%emt 0:08:07] B51: Sicilian: Moscow Variation (3 Bb5+) without 3...Bd7.} 7. O-O {[%emt 0:02:48]} (7. Nc3 $14 {deserves consideration.}) 7... Be7 {[%emt 0:01:00]} (7... a6 $5 {[%cal Ra6b5]} 8. Bxd7+ Bxd7 $11) 8. Nc3 {[%emt 0:04:54]} O-O {[%emt 0:05:37] White has an edge.} 9. Rad1 {[%emt 0:00:47]} Qc7 {[%emt 0:04:41]} 10. Rfe1 {[%emt 0:08:24]} Ne5 {[%emt 0:04:49] [#]} 11. Nd2 $146 {[%emt 0:21:10]} ({Predecessor:} 11. Be2 Rd8 12. Nxe5 dxe5 13. Qe3 Bd7 14. Qg3 a6 15. Bh6 Ne8 16. Bh5 Bc6 17. Bc1 {0-1 (31) Acevedo Mendez,L (1888)-Brenes Salgado,J (2121) San Jose 2013}) 11... h6 {[%emt 0:03:37]} 12. Bh4 {[%emt 0:03:35]} Ng6 {[%emt 0:00:14]} 13. Bg3 {[%emt 0:04:23]} Nh5 {[%emt 0:00:14]} 14. Qd3 {[%emt 0:00:49] [#]} ({White should try} 14. Bf1 $15) 14... a6 $1 $17 {[%emt 0:11:51]} 15. Ba4 {[%emt 0:00:59]} Nxg3 {[%emt 0:07:34]} 16. Qxg3 {[%emt 0:01:03]} Bf6 {[%emt 0:01:00]} 17. Nf3 {[%emt 0:01:46]} Rd8 {[%emt 0:00:48]} 18. Rd3 {[%emt 0:10:37]} (18. Bb3 $15) 18... b5 {[%emt 0:04:02]} 19. Bb3 {[%emt 0:00:07]} Kh7 {[%emt 0:03:19]} 20. Nd4 {[%emt 0:13:43] [#]} (20. a3 $142) 20... Qb6 {[%emt 0:08:05]} ({Black should play} 20... b4 $1 {[%cal Rb4c3]} 21. Nce2 Qb6) 21. Nce2 {[%emt 0:00:42]} (21. Red1 $17 {is a better defense.}) 21... Bb7 {[%emt 0:00:19]} (21... Bh4 $19 22. Qe3 Ne5) 22. Qe3 {[%emt 0:05:55]} Ne5 {[%emt 0:12:30]} 23. Rd2 {[%emt 0:06:32]} a5 {[%emt 0:00:28][%cal Ba6a5,Ba5a4][%mdl 32]} 24. f4 $2 {[%emt 0:01:45][%mdl 8192] [#] White does not recover from this.} (24. a3 $17 {is more resistant.}) 24... a4 $1 $19 {[%emt 0:00:11]} 25. Nc3 {[%emt 0:05:04]} ({Of course not} 25. fxe5 Bg5 26. Nf4 dxe5) (25. Nf5 $142 Qa5 26. Nfd4 (26. fxe5 $2 Bg5 $19)) (25. c3 axb3) 25... axb3 {[%emt 0:00:52]} 26. fxe5 {[%emt 0:00:41]} Bg5 {[%emt 0:00:10]} 27. Qf2 {[%emt 0:01:33]} Bxd2 {[%emt 0:00:13] A strong pair of Bishops.} 28. Nxb3 {[%emt 0:00:22]} Qxf2+ {[%emt 0:00:06]} 29. Kxf2 {[%emt 0:00:04]} Bxe1+ {[%emt 0:00:05]} 30. Kxe1 {[%emt 0:00:05]} dxe5 {[%emt 0:00:04] Strongly threatening ...b4.} 31. a3 {[%emt 0:00:29]} f5 {[%emt 0:00:14]} 32. Nc5 {[%emt 0:01:03]} Bxe4 {[%emt 0:00:07]} 33. N5xe4 {[%emt 0:00:10]} fxe4 {[%emt 0:00:05]} 34. Nxb5 {[%emt 0:00:06]} Rab8 {[%emt 0:00:14]} 35. c4 {[%emt 0:00:54]} e3 {[%emt 0:00:05]} (35... Rbc8 $142 36. Nc3 Rxc4 37. a4 Rb8 38. Nd1 Rxa4 39. Kf2 Rc4 40. Ke3 Rb3+ 41. Nc3 Rxb2 42. Nxe4 Rb3+ 43. Ke2 Rxe4+ 44. Kd2 Rc4 45. g3 Rb2+ 46. Kd3 Rbc2 47. h3 R4c3+ 48. Ke4 Re2#) 36. b4 {[%emt 0:01:02]} Rd2 {[%emt 0:00:06]} 37. Nc7 {[%emt 0:01:18]} Rc8 {[%emt 0:00:06] Weighted Error Value: White=1.18/Black=0.32} 0-1

[Event "French-ch Youth U18 2022"]
[Site "Agen"]
[Date "2022.04.18"]
[Round "3.4"]
[White "Maugenest, Ghislain"]
[Black "Lo Iacono, Sebastien"]
[Result "1/2-1/2"]
[ECO "A57"]
[WhiteElo "2256"]
[BlackElo "1996"]
[Annotator "TA"]
[PlyCount "75"]
[EventDate "2022.04.17"]
[EventType "swiss"]
[EventCountry "FRA"]
[SourceTitle "playchess.com"]
[Source "ChessBase"]
[SourceQuality "1"]
[TimeControl "5400+30"]

{[%evp 14,75,12,10,8,0,46,-68,-54,-79,-75,-71,-65,-81,-71,-64,-73,-147,-143,-204,-66,-65,-88,-120,-51,-50,-41,-129,-114,-115,-102,-197,-201,-230,-234,-221,-227,-208,-172,-170,-136,-158,-162,-221,-144,-145,-118,-115,-108,-121,-128,-197,0,0,-8,-17,0,0,0,0,0,-81,-64,-176]} 1. d4 {[%emt 0:00:05]} Nf6 {[%emt 0:00:08]} 2. c4 {[%emt 0:00:15]} c5 {[%emt 0:00:06]} 3. d5 {[%emt 0:00:23]} b5 {[%emt 0:00:17]} 4. cxb5 {[%emt 0:00:35]} a6 {[%emt 0:00:30]} 5. f3 {[%emt 0:00:42]} axb5 {[%emt 0:00:38]} 6. e4 {[%emt 0:00:33]} Qa5+ {[%emt 0:01:01]} 7. Bd2 {[%emt 0:00:55]} b4 {[%emt 0:00:49] [#]} 8. Na3 $1 {[%emt 0:01:13]} e6 {[%emt 0:00:59] A57: Benko/Volga Gambit.} 9. Nc4 {[%emt 0:03:14]} Qc7 {[%emt 0:01:10]} (9... Qd8 $11 {is superior.}) 10. dxe6 {[%emt 0:06:57]} (10. Bg5 $14) 10... dxe6 $15 {[%emt 0:01:23]} 11. Bd3 {[%emt 0:02:13]} Be7 {[%emt 0:04:40]} 12. Ne2 {[%emt 0:04:28]} Nc6 {[%emt 0:04:50]} 13. O-O {[%emt 0:04:33]} O-O {[%emt 0:01:07] [#]} 14. Qc2 $146 {[%emt 0:22:52]} ({Predecessor:} 14. a4 Ba6 15. Qc2 Rfd8 16. Bf4 e5 17. Bg3 b3 18. Qxb3 Na5 19. Qa2 Rxd3 20. Nxe5 {0-1 (32) Liew,C (1930)-Halwick,F (2434) IECG email 2002}) 14... Ba6 {[%emt 0:04:46]} 15. f4 {[%emt 0:06:47]} (15. Bf4 $142 e5 16. Bg5) 15... Rfd8 $17 {[%emt 0:02:52]} 16. e5 {[%emt 0:04:32] [#]} (16. Rad1 $17) 16... Bxc4 {[%emt 0:01:30]} ({Black should try} 16... Qd7 $1 $19 17. Nd6 (17. exf6 Qxd3) 17... Bxd3 18. Qxd3 Ne8) 17. Bxc4 $15 {[%emt 0:02:28]} Nd5 {[%emt 0:03:10]} 18. Rad1 {[%emt 0:02:42]} Nd4 {[%emt 0:07:52]} ({Black should play} 18... Nb6 $17 19. Bc1 Nd4 20. Nxd4 cxd4) 19. Nxd4 $1 {[%emt 0:08:24]} cxd4 {[%emt 0:00:06]} 20. Qb3 {[%emt 0:02:06]} (20. Rc1 $15) 20... Ne3 $36 {[%emt 0:06:16][%mdl 2048] Black is on the roll.} 21. Bxe3 {[%emt 0:00:17]} dxe3 {[%emt 0:00:04]} 22. Bd3 {[%emt 0:07:56] [#]} (22. g3 $17) 22... Qa7 $1 $19 {[%emt 0:01:54] Hoping for ...e2+.} 23. Kh1 {[%emt 0:01:26]} Qxa2 {[%emt 0:00:47]} 24. Qc2 {[%emt 0:00:47]} g6 {[%emt 0:05:25]} 25. Qe2 {[%emt 0:04:27]} Bc5 {[%emt 0:04:13][%cal Be7c5,Bc5d4,Bd4b2][%mdl 32]} 26. h4 {[%emt 0:00:41]} Qa7 {[%emt 0:09:26]} 27. h5 {[%emt 0:00:40]} Qe7 {[%emt 0:00:45] White must now prevent ...Qh4+.} 28. Qg4 {[%emt 0:02:12] Against Qh4+} (28. g3 $142) 28... Bd4 {[%emt 0:19:18]} 29. Rf3 {[%emt 0:08:52][%cal Rh5g6]} e2 {[%emt 0:01:42]} 30. Bxe2 {[%emt 0:00:18]} Bxb2 {[%emt 0:00:20]} 31. Rxd8+ {[%emt 0:01:09]} Qxd8 {[%emt 0:01:33]} 32. Bd3 {[%emt 0:00:55]} (32. Rd3 $17 {was necessary.} Ra1+ 33. Kh2) 32... Ra3 $2 {[%emt 0:08:59]} (32... Ra1+ $19 33. Kh2 Kg7) 33. hxg6 $11 {[%emt 0:00:14]} hxg6 {[%emt 0:03:06]} (33... Rxd3 $2 34. gxh7+ Kxh7 35. Qh3+ Kg7 36. Rxd3 Qxd3 37. Qxd3 $18) 34. Bxg6 {[%emt 0:01:04] Strongly threatening Bd3+.} fxg6 {[%emt 0:00:48]} 35. Qxg6+ {[%emt 0:00:09]} Kf8 {[%emt 0:00:00] ( -> ...Qh4+)} 36. Qh6+ {[%emt 0:00:50]} Ke8 {[%emt 0:00:46]} 37. Qxe6+ {[%emt 0:00:10]} (37. Qg6+ $1 $11 Kd7 38. Rd3+ Rxd3 39. Qxd3+ Kc8 40. Qa6+ Kd7 41. Qd3+ Ke8 42. Qg6+ Ke7 43. Qh7+ Kf8 44. Qh8+ Ke7 45. Qh7+ Kf8 46. Qh8+ Ke7 47. Qh7+) 37... Qe7 $17 {[%emt 0:00:34]} 38. Qg6+ {And White is the lucky defender.  Weighted Error Value: White=0.29 (precise) /Black=0.34} (38. Qc8+ $15 Kf7 39. Qf5+ Kg8 40. Qc8+ Qf8 41. Qg4+ Kf7 42. Qd7+ Qe7 43. Qf5+ Kg8 44. Qg4+ Kf8 45. Qc8+ Kf7 46. Qf5+) 1/2-1/2

[Event "French-ch Youth U18 2022"]
[Site "Agen"]
[Date "2022.04.18"]
[Round "3.5"]
[White "Moracchini, Margaux"]
[Black "Blanquet, Camille"]
[Result "1-0"]
[ECO "B15"]
[WhiteElo "1994"]
[BlackElo "1928"]
[Annotator "TA"]
[PlyCount "72"]
[EventDate "2022.04.17"]
[EventType "swiss"]
[EventCountry "FRA"]
[SourceTitle "playchess.com"]
[Source "ChessBase"]
[SourceQuality "1"]
[TimeControl "5400+30"]

{[%evp 14,72,29,29,26,13,43,28,26,12,15,7,12,22,25,16,35,0,0,-16,-9,-47,-57,-32,-34,-97,-105,-154,-206,-280,-110,-1180,-774,-754,-761,-861,-859,-29982,-983,-958,-1018,-1018,-1018,-1100,-1097,-1315,-1091,-1482,-1458,-1335,-1153,-1324,-1312,-1295,-1237,-3524,-3103,-1984,-1608,-2572,-2469]} 1. e4 {[%emt 0:00:05]} c6 {[%emt 0:00:09]} 2. d4 {[%emt 0:00:05]} d5 {[%emt 0:00:06]} 3. Nd2 {[%emt 0:00:09]} dxe4 {[%emt 0:00:18]} 4. Nxe4 {[%emt 0:00:06]} Nf6 {[%emt 0:00:15]} 5. Nxf6+ {[%emt 0:00:33]} exf6 {[%emt 0:00:10]} 6. c3 {[%emt 0:00:39]} Bd6 {[%emt 0:01:01]} 7. Bd3 {[%emt 0:00:53]} O-O {[%emt 0:01:17]} 8. Qc2 {[%emt 0:01:19] Active counter play!} Re8+ {[%emt 0:01:11] B15: Caro-Kann: 3 Nc3: 3...g6 and 3...dxe4 4 Nxe4 Nf6 5 Nxf6+ exf6.} 9. Ne2 {[%emt 0:00:20][%cal Bg1e2,Be2c3,Bc3e4][%mdl 32]} h5 {[%emt 0:01:51]} (9... f5 $5) 10. Be3 {[%emt 0:00:48]} Nd7 {[%emt 0:02:07] White has an edge.} 11. O-O-O {[%emt 0:01:16]} Nf8 {[%emt 0:03:38]} 12. c4 {[%emt 0:01:52]} Be6 {[%emt 0:06:22]} 13. Kb1 {[%emt 0:00:43]} Rc8 {[%emt 0:11:39][%cal Ob7b5]} 14. Nc3 {[%emt 0:14:44]} Qa5 {[%emt 0:04:49][%cal Ob7b5]} 15. Ne4 {[%emt 0:03:21]} Be7 {[%emt 0:03:44] [#]} 16. Bd2 $146 {[%emt 0:01:16]} ({Predecessor:} 16. Nc5 Bxc5 17. dxc5 Rcd8 18. Be2 g6 19. Bd3 Rxd3 20. Rxd3 Bf5 21. Ka1 Bxd3 22. Qxd3 {1-0 (75) Piekielny,P (2150)-Luberanski,J (2274) Warsaw 2021}) 16... Qd8 {[%emt 0:03:35]} 17. Bc3 {[%emt 0:00:30]} b5 $1 {[%emt 0:03:37]} 18. cxb5 {[%emt 0:18:39]} Qd5 {[%emt 0:01:48][%csl LRa2,LRb5] Inhibits Nc5.} 19. Qa4 {[%emt 0:01:11]} (19. Qb3 $15) 19... cxb5 $17 {[%emt 0:06:42][%mdl 64] Deflection} 20. Qxb5 {[%emt 0:00:45]} ({Wrong is} 20. Qxa7 $2 Ra8 21. Qb6 Reb8 $19) (20. Qa5 $142) 20... Qxa2+ {[%emt 0:20:43]} 21. Kc1 {[%emt 0:13:54]} Bd7 $2 {[%emt 0:06:13]} (21... f5 $19 {and Black stays clearly on top.} 22. Nc5 Nd7 $1 {[%mdl 512]}) 22. Qxh5 $2 {[%emt 0:01:17][%mdl 8192] White does not recover from this.} (22. Qa6 $17 Qd5 23. Kb1) 22... f5 ({Not} 22... Ba3 $2 23. Nc5 Re5 24. Qf3 Rexc5 25. dxc5 Rxc5 26. Bc2 $19) 23. Nc5 Bxc5 {[%emt 0:02:00]} 24. dxc5 {[%emt 0:00:39]} Rxc5 {[%emt 0:01:00]} 25. Rd2 {[%emt 0:11:27] [#]} Rb8 {[%emt 0:06:18]} (25... Rxc3+ $142 $1 {[%mdl 512]} 26. bxc3 Qa1+ 27. Bb1 Rb8 28. Rc2 Rxb1+ 29. Kd2 Rxh1 30. Qf3 Ba4 31. Kd3 Qb1 32. Ke3 Bxc2 33. Qd5 Re1+ 34. Kf3 Be4+ 35. Kf4 Qb8+ 36. Qe5 Ne6+ 37. Kg3 Qxe5+ 38. Kh3 Qf4 39. g3 Qh6#) 26. Rc2 $19 {[%emt 0:17:37] Black is clearly winning.} Qa1+ {[%emt 0:00:54]} 27. Kd2 {[%emt 0:00:06]} Qxh1 {[%emt 0:00:09]} 28. Qg5 {[%emt 0:01:43]} Ng6 {[%emt 0:00:42]} 29. b4 {[%emt 0:01:55]} Rcc8 {[%emt 0:00:56]} 30. Qg3 {[%emt 0:01:56]} f4 {[%emt 0:01:12]} 31. Qf3 {[%emt 0:01:55]} Qxh2 {[%emt 0:01:14]} 32. Bxg6 {[%emt 0:00:21]} fxg6 {[%emt 0:00:26]} 33. Qd5+ {[%emt 0:00:46]} Kh7 {[%emt 0:00:31] White must now prevent ...Bf5.} 34. Qf7 {[%emt 0:02:16] [#]} Qh6 $1 {[%emt 0:00:31]} 35. f3 {[%emt 0:01:18] [#]} Rf8 $1 {[%emt 0:00:34]} 36. Qd5 {[%emt 0:01:18]} (36. Qe7 Bf5) 36... Bf5 {[%emt 0:00:28][%mdl 32768] Weighted Error Value: White=1.09/Black=0.61. Loss on time!?} 1-0

[Event "French-ch Youth U18 2022"]
[Site "Agen"]
[Date "2022.04.18"]
[Round "3.6"]
[White "Renaudin, Axelle"]
[Black "Tomasi, Elise"]
[Result "1/2-1/2"]
[ECO "A06"]
[WhiteElo "1591"]
[BlackElo "1988"]
[Annotator "TA"]
[PlyCount "53"]
[EventDate "2022.04.17"]
[EventType "swiss"]
[EventCountry "FRA"]
[SourceTitle "playchess.com"]
[Source "ChessBase"]
[SourceQuality "1"]
[TimeControl "5400+30"]

{[%evp 11,53,-17,2,23,19,17,23,-26,7,13,40,29,54,44,47,31,31,37,37,33,27,27,56,23,132,127,203,207,245,223,228,117,117,118,117,105,105,105,105,105,105,107,104,105]} 1. Nf3 {[%emt 0:00:02]} d5 {[%emt 0:00:18]} 2. c4 {[%emt 0:00:07]} e6 {[%emt 0:03:23]} 3. e3 {[%emt 0:00:15]} Nf6 {[%emt 0:00:55]} 4. Nc3 {[%emt 0:00:42]} Be7 {[%emt 0:01:31]} 5. d4 {[%emt 0:00:42]} O-O {[%emt 0:01:55]} 6. Bd3 {[%emt 0:00:52]} c5 {[%emt 0:06:18]} 7. cxd5 {[%emt 0:04:17] D40: Queen's Gambit Declined: Semi-Tarrasch with 5 e3.} (7. O-O {with more complications.} dxc4 8. Bxc4 a6 9. dxc5 Bxc5 10. Bd3) 7... Nxd5 {[%emt 0:03:35]} (7... exd5 {is interesting.} 8. O-O c4 9. Bc2 Be6) 8. Nxd5 {[%emt 0:00:40]} Qxd5 {[%emt 0:01:25] [#]} 9. dxc5 $146 {[%emt 0:00:50]} (9. Qc2 {deserves consideration.}) ({Predecessor:} 9. Qc2 h6 10. O-O Nd7 11. Rd1 Nf6 12. e4 Qh5 13. e5 Nd7 14. Be3 b6 15. Be4 {0-1 (28) Politi,A (1741)-Nyback,J (2120) Finland 2017}) 9... Qxc5 {[%emt 0:03:20]} (9... Rd8 $5 {[%cal Rd5d3]} 10. Be2 Qxd1+ 11. Bxd1 Nd7 $15) 10. Bd2 {[%emt 0:08:04]} Bf6 {[%emt 0:07:56]} 11. Rc1 {[%emt 0:00:56]} Qh5 {[%emt 0:11:42]} 12. Qc2 {[%emt 0:11:04] And now Qxc8 would win.} Nc6 {[%emt 0:04:17]} 13. Bc3 {[%emt 0:10:11]} Bxc3+ {[%emt 0:06:13]} 14. Qxc3 {[%emt 0:00:07]} Bd7 {[%emt 0:05:21]} 15. O-O {[%emt 0:02:26]} Rfd8 {[%emt 0:07:50]} 16. Rfd1 {[%emt 0:02:39]} Rac8 {[%emt 0:05:03]} 17. Be2 {[%emt 0:08:45]} f6 {[%emt 0:05:38]} (17... Be8 $11) 18. Qb3 $1 $16 {[%emt 0:03:55]} Rc7 {[%emt 0:05:14]} (18... Qe8 $16) 19. Nd4 $18 {[%emt 0:10:41]} Qe8 {[%emt 0:01:50] [#]} 20. Nb5 {[%emt 0:14:28]} Na5 {[%emt 0:01:31][%cal Bc6a5,Ba5b3,Bb3c1][%mdl 32] [#] aiming for ...Rxc1.} 21. Nxc7 {[%emt 0:00:33]} Nxb3 $16 {[%emt 0:00:08] White is better.} 22. Nxe8 {[%emt 0:00:04][%mdl 64] Pin. &Bianco is more active.} Nxc1 {[%emt 0:00:09]} 23. Nxf6+ {[%emt 0:00:06]} gxf6 {[%emt 0:00:33]} 24. Rxc1 $18 {[%emt 0:00:10] KRB-KRB} Bc6 {[%emt 0:00:54]} 25. Rd1 {[%emt 0:05:47] Against Rd2} Rc8 {[%emt 0:01:27]} 26. b3 {[%emt 0:01:45]} Kf7 {[%emt 0:00:22]} 27. f3 {[%emt 0:02:42] Weighted Error Value: White=0.14 (very precise) /Black=0.24 (precise)} 1/2-1/2

[Event "French-ch Youth U18 2022"]
[Site "Agen"]
[Date "2022.04.18"]
[Round "3.7"]
[White "Randrianarimanana, Alicia"]
[Black "Sumarriva Paulin, Laura"]
[Result "1/2-1/2"]
[ECO "D02"]
[WhiteElo "1985"]
[BlackElo "1925"]
[Annotator "TA"]
[PlyCount "75"]
[EventDate "2022.04.17"]
[EventType "swiss"]
[EventCountry "FRA"]
[SourceTitle "playchess.com"]
[Source "ChessBase"]
[SourceQuality "1"]
[TimeControl "5400+30"]

{[%evp 9,75,-12,-7,-12,-2,-8,-8,-10,0,-9,0,0,0,-4,0,0,6,0,20,24,41,17,18,19,28,10,41,0,0,-45,0,-12,-3,-4,-9,-27,-25,-84,-39,-50,-19,-27,0,-38,-8,-10,0,0,14,0,0,0,0,0,0,0,0,0,0,0,0,0,0,0,0,0,0,0]} 1. d4 {[%emt 0:00:01]} d5 {[%emt 0:00:08]} 2. Nf3 {[%emt 0:00:08]} c5 {[%emt 0:00:27]} 3. e3 {[%emt 0:01:23]} Nc6 {[%emt 0:00:50]} 4. b3 {[%emt 0:01:47]} cxd4 {[%emt 0:03:37]} 5. exd4 {[%emt 0:00:09]} Bg4 {[%emt 0:00:21]} 6. Be2 {[%emt 0:02:42] D02: 1 d4 d5 2 Nf3 sidelines, including 2...Nf6 3 g3 and 2...Nf6 3 Bf4.} e6 {[%emt 0:01:49]} 7. Bb2 {[%emt 0:01:21]} Bd6 {[%emt 0:00:58]} 8. O-O {[%emt 0:00:47]} Nf6 {[%emt 0:02:47]} 9. Ne5 {[%emt 0:01:00]} Bxe2 {[%emt 0:01:31]} 10. Qxe2 {[%emt 0:00:02]} O-O {[%emt 0:00:36]} 11. c4 {[%emt 0:06:40]} Rc8 {[%emt 0:10:26]} 12. Nd2 {[%emt 0:04:52]} Bb8 {[%emt 0:03:41]} 13. Ndf3 {[%emt 0:06:40] [#]} Qd6 $146 {[%emt 0:12:49]} ({Predecessor:} 13... Re8 14. Ng5 Rc7 15. Rad1 h6 16. Nh3 Ne7 17. f4 Ne4 18. Nf2 Nxf2 19. Qxf2 Nf5 {1-0 (56) Lomandong,M (2035)-Liu,Y (1926) Batumi 2018}) 14. c5 {[%emt 0:01:34]} Qe7 {[%emt 0:04:19]} 15. Nxc6 {[%emt 0:07:24]} bxc6 {[%emt 0:00:39]} 16. b4 {[%emt 0:04:02]} Ne4 {[%emt 0:09:07]} 17. Rfe1 {[%emt 0:17:02]} Qc7 {[%emt 0:05:52]} 18. g3 {[%emt 0:00:27]} Qb7 {[%emt 0:07:20]} 19. Ba3 {[%emt 0:06:54]} f6 {[%emt 0:08:18]} 20. Nd2 {[%emt 0:00:55]} Nxd2 {[%emt 0:00:45]} 21. Qxd2 {[%emt 0:00:01]} e5 {[%emt 0:00:55]} 22. Bb2 {[%emt 0:00:14][%cal Rd4e5]} e4 {[%emt 0:01:20]} 23. Re3 {[%emt 0:06:05]} (23. f4 $11) 23... Qd7 {[%emt 0:10:06]} 24. f4 {[%emt 0:04:18]} exf3 {[%emt 0:03:00]} 25. Rxf3 {[%emt 0:01:11]} Qg4 {[%emt 0:00:41]} 26. Kg2 {[%emt 0:00:21]} (26. Qd3 $5 {[%cal Ra1f1]}) 26... Rfe8 {[%emt 0:03:57]} 27. Re1 {[%emt 0:00:06] The position is equal.} Kf7 {[%emt 0:01:04]} 28. Rfe3 {[%emt 0:12:18]} Qg5 {[%emt 0:02:14]} (28... Bf4 $5 29. Qe2 Qxe2+ 30. R3xe2 {[#]} Bd2 $1 31. Rxe8 Rxe8 32. Rxe8 Kxe8 $11) 29. Qe2 {[%emt 0:00:26][%cal Re3e8]} Rxe3 {[%emt 0:00:31]} 30. Qxe3 {[%emt 0:00:00]} Qxe3 {[%emt 0:00:15]} 31. Rxe3 {[%emt 0:00:01]} Re8 {[%emt 0:00:21]} 32. Rxe8 {[%emt 0:00:52]} Kxe8 $11 {[%emt 0:00:01][%mdl 4096] Endgame KB-KB} 33. a4 {[%emt 0:00:06]} a6 $1 {[%emt 0:00:17] Inhibits b5.} 34. Kf3 {[%emt 0:00:26]} Ke7 {[%emt 0:01:41]} 35. Bc1 {[%emt 0:00:49]} Ke6 {[%emt 0:02:59]} 36. h4 {[%emt 0:01:50]} g6 {[%emt 0:01:08]} 37. Bf4 {[%emt 0:02:10]} Bxf4 {[%emt 0:00:10]} 38. Kxf4 {[%emt 0:00:02] Weighted Error Value: White=0.13 (very precise) /Black=0.11 (very precise)} 1/2-1/2